bitfinex-derivatives/quotes_ETHF0:USTF0_20260203
["timestamp","ask_amount","ask_price","bid_price","bid_amount"]
[1770159545035,0.15457382,2235.5,2234.2,0.16071715]
[1770159546136,0.15457382,2235.5,2234.3,0.15722453]
[1770159549037,0.15457382,2235.5,2234.5,0.15722453]
[1770159549238,0.15457382,2235.5,2234.3,0.15722453]
[1770159551034,0.15457382,2235.8,2234.6,0.15722453]
[1770159551239,0.00343131,2236.0,2235.0,0.15722453]
[1770159551444,2.58265779,2236.5,2235.0,0.15722453]
[1770159551445,0.15457382,2236.7,2235.4,0.38119453]
[1770159551744,0.15457382,2236.7,2235.5,0.15722453]
[1770159552533,0.15866344,2236.7,2235.5,0.15722453]
[1770159556545,0.15457382,2236.1,2234.6,0.15722453]
[1770159556743,0.15457382,2236.0,2234.6,0.15722453]
[1770159557042,0.15457382,2235.8,2234.3,0.15722453]
[1770159557641,0.15457382,2235.6,2234.3,0.15722453]
[1770159563946,0.16069785,2235.5,2234.3,0.15722453]
[1770159564738,0.16069785,2236.0,2235.0,0.16602708]
[1770159565042,0.16069785,2236.0,2235.1,0.16602708]
[1770159565242,0.16069785,2236.3,2235.2,0.16602708]
[1770159566645,0.16069785,2236.3,2235.3,0.16602708]
[1770159575049,0.16069785,2236.6,2235.4,0.16602708]
[1770159575254,0.00408962,2236.7,2235.8,0.16602708]
[1770159575451,0.00408962,2236.7,2235.8,0.17125006]
[1770159575653,0.00408962,2236.7,2236.0,0.16602708]
[1770159576053,0.16069785,2237.2,2236.1,0.16602708]
[1770159577147,0.16069785,2237.2,2236.0,0.2239]
[1770159577148,0.00368605,2237.2,2236.4,0.16602708]
[1770159577746,2.60112885,2237.9,2236.4,0.16602708]
[1770159577747,0.16069785,2237.8,2236.4,0.16602708]
[1770159577950,0.16069785,2237.7,2236.4,0.16602708]
[1770159578156,0.16069785,2237.7,2236.5,0.22386]
[1770159578350,0.16069785,2238.0,2236.6,0.16602708]
[1770159578556,0.16069785,2238.0,2236.7,0.16602708]
[1770159578751,0.16432351,2238.0,2236.7,0.16602708]
[1770159579557,0.16432351,2238.0,2236.8,0.16602708]
[1770159580158,0.00362566,2238.0,2236.8,0.38985708]
[1770159580358,0.00362566,2238.0,2236.8,0.16602708]
[1770159581659,0.00362566,2238.0,2237.0,0.16602708]
[1770159581856,0.16432351,2238.0,2237.0,0.16602708]
[1770159582058,0.16432351,2238.0,2236.7,0.16602708]
[1770159582259,2.09821298,2238.0,2236.0,0.38993708]
[1770159582460,0.16069785,2237.5,2236.0,0.38993708]
[1770159582861,0.16069785,2237.4,2236.0,0.38993708]
[1770159583461,41.05447152,2238.0,2236.8,0.16602708]
[1770159583462,0.16432351,2238.0,2236.8,0.16602708]
[1770159583660,0.16432351,2238.0,2236.9,0.16602708]
[1770159584666,0.00362566,2238.0,2237.0,0.16602708]
[1770159584965,0.00362566,2238.0,2237.1,0.16602708]
[1770159585768,0.16432351,2238.0,2237.1,0.16602708]
[1770159586364,0.00362566,2238.0,2237.1,0.16602708]
[1770159590962,0.17094171,2238.0,2236.8,0.16909078]
[1770159591765,0.17094171,2238.0,2236.6,2.46085]
[1770159592060,0.17094171,2238.0,2236.6,2.237]
[1770159592061,0.16731605,2237.8,2236.6,2.237]
[1770159592368,0.16731605,2237.2,2235.9,0.16909078]
[1770159599965,0.15459172,2237.0,2235.9,0.16909078]
[1770159600167,0.15459172,2237.0,2235.8,0.00522298]
[1770159600373,0.15459172,2236.5,2235.0,0.16776733]
[1770159600572,0.15459172,2236.0,2234.7,0.16776733]
[1770159600766,0.15459172,2235.8,2234.7,0.16776733]
[1770159601067,2.60289733,2236.1,2235.0,0.16776733]
[1770159601267,0.15459172,2236.7,2235.0,0.16776733]
[1770159601467,0.15964431,2236.7,2235.5,0.16776733]
[1770159601773,0.00505259,2236.7,2235.9,0.16776733]
[1770159603375,0.15459172,2237.3,2236.1,0.16776733]
[1770159603969,0.15459172,2237.6,2236.5,0.16776733]
[1770159604170,0.15459172,2238.2,2236.8,0.16776733]
[1770159604371,0.00444251,2238.2,2237.3,0.16776733]
[1770159604577,0.15459172,2238.6,2237.4,0.16776733]
[1770159605574,0.15875426,2238.6,2237.4,0.16776733]
[1770159605977,0.00416254,2238.6,2237.6,0.16776733]
[1770159606172,0.15459172,2238.9,2237.7,0.16776733]
[1770159606671,0.15459172,2238.9,2237.2,0.16776733]
[1770159606878,0.15459172,2238.7,2237.2,0.16776733]
[1770159607177,0.15459172,2238.5,2237.2,0.16776733]
[1770159608380,0.15459172,2238.5,2236.9,5.02876733]
[1770159608681,0.15459172,2238.3,2237.0,0.16776733]
[1770159609178,0.15459172,2238.2,2236.9,2.237]
[1770159609374,0.15459172,2238.0,2236.9,2.237]
[1770159609576,0.15459172,2238.0,2236.8,0.00510186]
[1770159610176,0.15459172,2237.7,2236.0,2.45991]
[1770159610380,0.15459172,2237.5,2236.0,2.236]
[1770159610580,0.15459172,2237.3,2236.0,2.236]
[1770159610782,0.15459172,2237.2,2235.5,2.79076733]
[1770159611081,0.15459172,2237.0,2235.5,0.0048907]
[1770159611283,0.15459172,2236.8,2235.5,0.0048907]
[1770159611482,0.15459172,2236.6,2235.5,0.0048907]
[1770159612280,0.15459172,2236.6,2234.9,0.16776733]
[1770159612281,0.15459172,2236.4,2234.9,0.16776733]
[1770159612578,0.15459172,2236.2,2234.6,0.16776733]
[1770159612783,0.15459172,2236.0,2234.6,0.16776733]
[1770159612986,0.15459172,2235.8,2234.3,2.79076733]
[1770159613186,0.15459172,2235.8,2234.3,2.79593071]
[1770159613583,0.15459172,2235.8,2234.4,0.16776733]
[1770159616577,0.15459172,2235.8,2234.3,2.62816338]
[1770159616578,0.15459172,2236.2,2234.7,0.16776733]
[1770159620694,0.16604947,2236.1,2234.4,0.16444546]
[1770159620895,0.16604947,2235.9,2234.4,0.16444546]
[1770159621395,0.16604947,2235.8,2234.4,0.16444546]
[1770159625200,0.16604947,2235.8,2234.6,0.16444546]
[1770159626292,0.16604947,2235.8,2234.7,0.16444546]
[1770159628901,0.16604947,2235.8,2234.4,0.16444546]
[1770159629405,0.22394,2235.8,2234.4,0.16444546]
[1770159629601,0.16604947,2235.7,2234.4,0.16444546]
[1770159629803,0.16604947,2235.7,2234.3,0.00516338]
[1770159630101,0.16604947,2235.3,2234.3,0.00516338]
[1770159630299,0.17065981,2235.3,2234.3,0.00516338]
[1770159630903,0.17065981,2235.3,2232.7,15.668]
[1770159630904,0.16604947,2234.8,2233.5,0.16444546]
[1770159631500,0.16604947,2234.8,2233.3,0.22417]
[1770159631698,0.39008947,2234.7,2233.2,0.16444546]
[1770159631903,0.16604947,2234.4,2233.2,0.00406107]
[1770159632100,2.6030911,2234.9,2232.4,0.22427]
[1770159632101,0.16604947,2234.0,2232.4,0.22427]
[1770159632704,0.16604947,2233.9,2232.3,0.16444546]
[1770159632904,0.16604947,2233.7,2232.0,0.16444546]
[1770159633104,0.16604947,2233.6,2232.0,0.17012903]
[1770159634104,0.16604947,2233.6,2232.0,0.00568357]
[1770159634405,0.22988805,2233.7,2231.2,0.16444546]
[1770159634406,0.16604947,2232.8,2231.2,0.16444546]
[1770159634600,0.16604947,2232.6,2231.2,0.16444546]
[1770159635208,0.16604947,2232.5,2231.2,0.16982018]
[1770159640408,0.16604947,2232.5,2231.2,0.00537472]
[1770159641110,0.16604947,2232.3,2231.2,0.00537472]
[1770159641606,0.16604947,2231.5,2229.5,0.16444546]
[1770159641812,0.22441,2231.1,2229.5,0.16444546]
[1770159642009,0.16604947,2231.0,2229.5,0.16444546]
[1770159642212,0.16604947,2231.0,2229.2,0.38903546]
[1770159642410,0.16604947,2231.0,2229.3,0.16444546]
[1770159642711,0.16604947,2230.9,2229.3,0.16972383]
[1770159643305,0.16604947,2230.5,2229.3,0.00527837]
[1770159646115,0.16604947,2230.3,2229.3,0.00527837]
[1770159647714,0.16604947,2230.3,2229.3,0.16972383]
[1770159650818,0.16604947,2230.3,2229.3,0.00527837]
[1770159651018,0.16604947,2230.3,2229.0,0.22196456]
[1770159651614,0.16604947,2230.3,2229.0,0.38263831]
[1770159651920,0.16604947,2230.3,2229.1,0.16067375]
[1770159652119,0.16604947,2230.3,2229.1,0.16428885]
[1770159652314,0.2245,2230.2,2229.1,0.0036151]
[1770159652520,0.15580003,2230.1,2229.1,0.0036151]
[1770159658221,0.15580003,2230.1,2229.1,0.16592845]
[1770159659219,0.15580003,2230.1,2229.1,0.0036151]
[1770159661425,0.15740885,2230.4,2229.3,0.16231335]
[1770159661821,0.15740885,2230.4,2229.4,0.16231335]
[1770159662420,0.00361362,2231.0,2229.5,0.16231335]
[1770159662421,0.15740885,2230.7,2229.5,0.16231335]
[1770159663529,0.15740885,2230.7,2229.8,0.16231335]
[1770159665230,0.15740885,2232.0,2230.9,0.16231335]
[1770159665932,0.15740885,2231.0,2229.7,2.243]
[1770159666127,0.22452,2230.0,2228.7,2.243]
[1770159666328,0.15740885,2229.7,2229.0,0.21825021]
[1770159666730,0.16102247,2229.6,2229.0,0.21825021]
[1770159666932,5.275,2230.1,2229.0,0.21825021]
[1770159666933,0.15740885,2230.0,2229.0,0.21825021]
[1770159667133,0.15740885,2230.5,2229.1,0.16231335]
[1770159667334,0.15740885,2230.8,2229.8,0.16231335]
[1770159667536,0.00370738,2231.0,2230.1,0.16231335]
[1770159668031,0.00370738,2231.0,2230.2,0.16231335]
[1770159668430,0.15740885,2231.4,2230.2,0.16231335]
[1770159669437,0.16263693,2231.4,2230.2,0.16231335]
[1770159669634,0.15740885,2232.1,2230.8,0.16231335]
[1770159669938,0.15740885,2232.8,2231.4,0.16231335]
[1770159670332,0.15740885,2232.8,2231.5,0.16231335]
[1770159670537,0.15740885,2233.3,2231.7,0.16231335]
[1770159670731,0.16093957,2233.3,2231.8,0.16231335]
[1770159670931,0.15740885,2233.1,2231.8,0.16231335]
[1770159671331,0.00353072,2233.3,2231.9,0.66724302]
[1770159671530,0.00353072,2233.3,2232.0,0.16231335]
[1770159671731,0.15740885,2234.3,2232.8,0.16231335]
[1770159671935,0.15740885,2234.3,2233.0,0.16231335]
[1770159672640,0.16125397,2234.3,2233.2,0.16231335]
[1770159673037,0.16839831,2234.3,2233.2,0.16231335]
[1770159673644,0.16455319,2234.2,2233.2,0.16231335]
[1770159673942,0.00384512,2234.3,2232.8,0.16231335]
[1770159673943,0.16455319,2233.9,2232.8,0.16231335]
[1770159674135,0.15740885,2233.9,2232.5,0.16231335]
[1770159674335,0.15740885,2233.7,2232.2,2.40431335]
[1770159674540,0.15740885,2233.5,2232.2,2.242]
[1770159674944,0.16455319,2233.1,2232.2,2.242]
[1770159675139,0.15740885,2233.1,2232.2,2.242]
[1770159675347,0.00714434,2232.9,2232.2,2.242]
[1770159675647,0.15740885,2234.2,2232.5,0.16231335]
[1770159675845,0.15740885,2234.2,2232.8,0.16231335]
[1770159676538,0.15740885,2234.2,2233.0,0.16231335]
[1770159676740,0.00384512,2234.3,2233.0,0.16231335]
[1770159676945,0.00384512,2234.3,2233.2,0.16231335]
[1770159677541,0.00384512,2234.3,2233.3,0.16231335]
[1770159677738,0.00384512,2234.3,2233.3,0.16584947]
[1770159677942,0.15740885,2233.9,2233.3,0.00353612]
[1770159678143,0.00714434,2233.8,2233.3,0.00353612]
[1770159678344,0.15740885,2233.8,2233.3,0.00353612]
[1770159678541,0.00714434,2233.4,2232.6,0.16231335]
[1770159678845,0.15740885,2233.7,2232.6,0.16231335]
[1770159679448,0.15740885,2233.7,2232.6,0.16599218]
[1770159680748,0.16845211,2234.2,2232.8,0.16234081]
[1770159680945,0.16845211,2234.2,2233.1,0.16234081]
[1770159681144,0.00384512,2234.3,2233.1,0.16234081]
[1770159681346,0.00384512,2234.3,2233.2,0.38653081]
[1770159681546,0.00384512,2234.3,2233.3,0.16234081]
[1770159682448,0.17559645,2234.2,2233.2,0.22419]
[1770159682644,0.16845211,2234.2,2233.2,0.22419]
[1770159682845,0.17559645,2234.0,2233.0,0.16234081]
[1770159683040,0.16845211,2234.0,2233.0,0.16234081]
[1770159683342,0.17559645,2234.0,2233.0,0.16234081]
[1770159683549,0.17229723,2234.3,2233.0,0.16234081]
[1770159683745,0.00714434,2234.2,2233.0,0.16234081]
[1770159684144,0.00714434,2234.1,2233.0,0.16234081]
[1770159684346,0.00714434,2234.2,2233.0,0.16234081]
[1770159684549,0.17229723,2234.3,2233.3,0.16234081]
[1770159684848,0.00384512,2234.3,2233.3,0.16234081]
[1770159685048,0.00714434,2234.2,2233.3,0.16234081]
[1770159685245,0.00714434,2234.1,2233.3,0.16234081]
[1770159685648,0.00384512,2234.3,2233.3,0.16234081]
[1770159685848,0.00714434,2234.2,2233.3,0.16234081]
[1770159686544,0.16845211,2235.0,2234.0,0.16234081]
[1770159686748,5.16184094,2236.1,2234.0,0.16234081]
[1770159686749,0.16845211,2235.6,2234.5,0.38640081]
[1770159686947,0.16845211,2235.9,2234.9,0.22402]
[1770159687144,0.16845211,2236.7,2235.0,0.16234081]
[1770159687346,0.16845211,2236.2,2235.0,0.16234081]
[1770159687551,0.00506506,2236.2,2235.1,0.16234081]
[1770159688047,0.0122094,2236.2,2235.2,0.16234081]
[1770159688246,0.00714434,2236.1,2235.2,0.16234081]
[1770159688842,0.00714434,2236.0,2235.2,0.16234081]
[1770159689052,0.00714434,2236.1,2235.2,0.16234081]
[1770159689355,2.92184094,2235.3,2232.6,5.23656914]
[1770159689645,0.22409,2234.3,2232.8,36.36514027]
[1770159689846,0.22412,2234.0,2232.9,36.19575799]
[1770159690050,0.22412,2234.0,2232.4,0.16938228]
[1770159690253,4.65306216,2233.9,2232.4,0.17499723]
[1770159690546,2.92184094,2233.9,2232.5,36.19575799]
[1770159690752,3.14601094,2233.4,2232.0,0.16910873]
[1770159690952,3.14601094,2233.4,2232.1,5.70173579]
[1770159691154,2.92184094,2233.4,2231.7,2.24]
[1770159691448,2.56460366,2233.9,2232.0,0.16910873]
[1770159691644,0.00435755,2234.0,2232.5,0.16910873]
[1770159691850,0.00435755,2234.0,2232.7,0.16910873]
[1770159692050,0.00435755,2234.0,2232.8,0.16910873]
[1770159692246,0.00435755,2234.0,2232.9,0.16666696]
[1770159692854,0.00435755,2234.0,2233.0,5.70173579]
[1770159693256,0.0097882,2234.0,2233.0,5.70173579]
[1770159693748,0.00435755,2234.0,2232.5,2.63334909]
[1770159693954,0.00543065,2233.9,2232.6,5.86840275]
[1770159694150,0.00543065,2233.9,2232.5,0.00534909]
[1770159694347,0.00435755,2234.0,2232.6,0.16634666]
[1770159694552,0.00435755,2234.0,2232.9,0.16634666]
[1770159694748,0.00435755,2234.0,2233.0,0.16634666]
[1770159694948,0.00435755,2234.0,2233.0,22.99051587]
[1770159695149,0.00435755,2234.0,2233.1,17.12243342]
[1770159695349,0.00435755,2234.0,2233.0,5.86808245]
[1770159695857,0.01042878,2234.0,2233.0,5.70173579]
[1770159697257,2.57503244,2234.0,2233.0,5.70173579]
[1770159697456,7.25255715,2234.0,2233.0,5.70173579]
[1770159698157,0.00513623,2233.8,2232.5,0.17216325]
[1770159698458,2.56460366,2233.3,2232.6,5.70173579]
[1770159698653,2.56460366,2233.0,2232.6,5.69520516]
[1770159698852,2.56460366,2232.8,2231.9,5.03738228]
[1770159699056,4.67752471,2232.8,2231.9,22.1598157]
[1770159699256,4.67752471,2232.7,2232.1,17.2918157]
[1770159699454,2.56460366,2232.9,2232.5,0.16938228]
[1770159699851,2.56460366,2233.1,2232.8,17.12243342]
[1770159700152,2.56460366,2233.1,2232.7,17.2918157]
[1770159700353,2.56460366,2233.1,2232.8,17.12243342]
[1770159701061,2.56460366,2233.1,2232.9,17.12243342]
[1770159701361,2.56460366,2233.1,2232.8,22.81763858]
[1770159701763,2.56460366,2233.1,2232.9,17.12243342]
[1770159702262,38.46905492,2233.2,2232.9,17.12243342]
[1770159702455,38.46905492,2233.3,2232.8,5.86544971]
[1770159702656,38.46905492,2233.3,2232.8,0.17024455]
[1770159702962,38.46905492,2233.4,2233.0,17.12243342]
[1770159703157,38.46905492,2233.4,2232.7,21.76588313]
[1770159703363,38.46905492,2233.3,2232.7,21.76588313]
[1770159703862,38.46905492,2233.3,2232.8,17.12243342]
[1770159704062,38.46905492,2233.4,2232.9,0.17024455]
[1770159704263,38.46905492,2233.8,2233.3,17.12243342]
[1770159704558,0.22846755,2234.0,2233.3,0.1702691]
[1770159704559,38.47341247,2234.0,2233.3,0.1702691]
[1770159704762,38.47341247,2234.0,2233.4,21.59563858]
[1770159705657,38.47341247,2234.0,2233.4,4.47320516]
[1770159706765,38.47341247,2234.0,2233.4,21.59563858]
[1770159706966,38.47341247,2234.0,2233.5,17.29269119]
[1770159707164,38.47341247,2234.0,2233.4,21.59563858]
[1770159707364,38.47341247,2234.0,2233.4,4.47320516]
[1770159707566,38.47341247,2234.0,2233.4,21.59563858]
[1770159707766,38.47341247,2234.0,2233.5,17.12243342]
[1770159710361,38.46905492,2233.9,2232.5,0.17299645]
[1770159710670,38.69325492,2233.2,2232.6,4.47320516]
[1770159710868,38.69325492,2233.1,2232.5,0.00347441]
[1770159711270,38.46905492,2233.0,2232.5,0.00347441]
[1770159711472,4.60273255,2232.9,2232.5,0.00347441]
[1770159711668,4.60273255,2232.8,2232.5,0.00347441]
[1770159711869,4.60273255,2232.7,2232.5,0.00347441]
[1770159712071,38.69326492,2233.0,2232.5,0.00347441]
[1770159712371,0.22425,2232.6,2231.9,0.16951474]
[1770159712573,4.60073231,2232.5,2232.0,17.12243342]
[1770159712773,4.60073231,2232.4,2232.0,1.90860156]
[1770159713071,0.22425,2232.6,2232.1,17.12243342]
[1770159713263,4.59598147,2232.5,2232.1,17.12243342]
[1770159713468,4.59598147,2232.4,2232.1,17.12571217]
[1770159713664,0.0041698,2232.5,2232.2,2.07854568]
[1770159713870,38.46905492,2232.8,2232.4,17.12243342]
[1770159714068,38.46905492,2232.8,2232.2,2.07854568]
[1770159714069,4.59548078,2232.7,2232.3,17.12243342]
[1770159714269,4.59548078,2232.6,2232.3,17.12243342]
[1770159714472,38.46905492,2232.8,2232.3,17.12243342]
[1770159714670,0.22421,2233.0,2232.4,19.03103498]
[1770159714868,4.59465726,2232.9,2232.4,1.90860156]
[1770159715072,4.59465726,2232.8,2232.4,1.90860156]
[1770159715373,0.2288736,2233.0,2232.4,1.90860156]
[1770159715573,4.58791761,2232.9,2232.4,1.90860156]
[1770159715773,4.58791761,2232.8,2232.4,1.90860156]
[1770159715969,0.2288736,2233.0,2232.4,1.90860156]
[1770159716274,4.58556862,2232.9,2232.4,1.90860156]
[1770159716472,4.58556862,2232.8,2232.4,1.90860156]
[1770159716673,0.2288736,2233.0,2232.4,19.03103498]
[1770159716873,4.58592801,2232.9,2232.4,19.03103498]
[1770159717075,4.58592801,2232.8,2232.4,19.03103498]
[1770159717275,38.69792852,2233.0,2232.4,19.03103498]
[1770159717476,4.59144839,2232.9,2232.4,19.03103498]
[1770159717776,4.59144839,2232.8,2232.4,19.03103498]
[1770159718072,4.59144839,2232.7,2232.4,19.03103498]
[1770159718276,4.59144839,2232.6,2232.4,19.03103498]
[1770159718477,38.46905492,2232.9,2232.4,19.03103498]
[1770159718778,4.60173259,2232.8,2232.5,17.12243342]
[1770159719072,43.07078751,2232.7,2232.5,11.51640133]
[1770159719376,38.46905492,2232.7,2232.6,11.51640133]
[1770159719577,43.08604059,2232.7,2232.5,4.78492786]
[1770159719775,38.46905492,2232.7,2232.6,4.78492786]
[1770159719976,43.08731526,2232.7,2232.6,4.78492786]
[1770159720177,4.61826034,2232.7,2232.6,4.78492786]
[1770159721179,7.53984637,2232.7,2228.5,21.83292507]
[1770159721475,39.48659439,2230.0,2229.1,51.48581857]
[1770159721778,4.61826034,2229.9,2229.1,51.65721612]
[1770159721971,3.3461473,2229.8,2229.7,4.4816]
[1770159722172,9.57522023,2230.5,2229.7,0.17492447]
[1770159722474,5.22822023,2230.4,2229.8,51.48581857]
[1770159723072,5.22822023,2230.5,2229.8,51.48581857]
[1770159723271,0.00483354,2230.5,2229.8,51.48581857]
[1770159725075,5.22822023,2231.1,2230.0,0.16592122]
[1770159725275,0.15893807,2231.3,2230.0,0.16592122]
[1770159725473,0.15893807,2231.3,2230.2,0.16514186]
[1770159725673,0.15893807,2231.3,2230.3,54.11098503]
[1770159726076,5.39099095,2231.3,2230.3,54.11098503]
[1770159726572,5.22822023,2231.8,2230.4,0.16337682]
[1770159726778,0.15893807,2231.9,2230.5,0.16337682]
[1770159727175,5.45253023,2232.1,2230.5,0.16337682]
[1770159727378,0.15893807,2231.9,2230.7,0.16258755]
[1770159727777,0.164638,2231.9,2230.8,51.47715238]
[1770159728577,0.388968,2231.9,2230.7,0.16258755]
[1770159728777,0.38326807,2231.8,2230.8,51.47715238]
[1770159728977,0.15893807,2231.7,2230.8,51.47715238]
[1770159729882,0.38328807,2231.7,2230.8,51.47715238]
[1770159730181,0.38328807,2231.7,2230.9,2.63]
[1770159730684,0.38328807,2231.7,2231.0,51.47715238]
[1770159731478,0.22435,2231.7,2231.1,0.16076991]
[1770159731785,0.00569993,2231.9,2231.2,2.63]
[1770159731980,0.00569993,2231.9,2231.2,54.10715238]
[1770159732885,0.00569993,2231.9,2231.3,51.47715238]
[1770159733085,0.00569993,2231.9,2231.3,51.48109968]
[1770159734088,4.85150293,2231.8,2231.3,51.48109968]
[1770159734288,0.00569993,2231.9,2231.3,51.48109968]
[1770159734488,4.8510373,2231.8,2231.3,51.48109968]
[1770159734685,0.00569993,2231.9,2231.3,51.48109968]
[1770159734887,4.85102701,2231.8,2231.3,51.48109968]
[1770159735085,0.00569993,2231.9,2231.3,51.48109968]
[1770159735288,4.85356887,2231.8,2231.3,51.64186959]
[1770159735490,0.00569993,2231.9,2231.3,51.64186959]
[1770159735686,4.85384536,2231.8,2231.3,51.64186959]
[1770159735886,4.85499619,2231.7,2231.3,51.64186959]
[1770159736185,0.00569993,2231.9,2231.3,51.64186959]
[1770159736480,4.85758365,2231.8,2231.3,51.64186959]
[1770159736684,4.85758365,2231.7,2231.3,51.64186959]
[1770159736880,0.00569993,2231.9,2231.3,51.64186959]
[1770159737090,4.85770983,2231.8,2231.4,0.16076991]
[1770159737390,0.00569993,2231.9,2231.3,51.48109968]
[1770159737588,6.54367906,2232.5,2231.5,2.63]
[1770159737589,0.40213181,2232.5,2231.5,2.63]
[1770159737987,0.40213181,2232.5,2231.6,51.47145245]
[1770159738489,0.40537137,2232.5,2231.6,51.47145245]
[1770159740095,0.40537137,2232.5,2231.7,2.63]
[1770159740496,0.40537137,2232.5,2231.8,51.47145245]
[1770159742098,0.00323956,2232.5,2231.9,2.63]
[1770159742500,0.00323956,2232.5,2232.0,54.10145245]
[1770159742798,0.00323956,2232.5,2232.1,51.47145245]
[1770159742997,0.00323956,2232.5,2232.2,2.63]
[1770159743399,5.22822023,2232.9,2232.2,2.83521252]
[1770159743597,5.22822023,2233.2,2232.3,51.67666497]
[1770159743799,5.22822023,2233.3,2232.3,51.67666497]
[1770159744401,5.23216629,2233.3,2232.3,51.67666497]
[1770159744801,0.00394606,2233.3,2232.4,0.28755254]
[1770159744996,0.00394606,2233.3,2232.4,2.91755254]
[1770159745498,0.00394606,2233.3,2232.6,0.36355759]
[1770159745796,0.00394606,2233.3,2232.7,2.63]
[1770159745999,0.00394606,2233.3,2232.7,54.10145245]
[1770159747104,4.54013,2233.8,2232.7,54.10145245]
[1770159747105,5.22822023,2233.8,2232.8,0.42833345]
[1770159747298,5.22822023,2234.1,2233.0,0.43747267]
[1770159747502,9.4753847,2234.4,2232.8,51.47145245]
[1770159747503,0.4254214,2234.5,2233.2,0.43747267]
[1770159748004,0.4254214,2234.4,2233.3,51.90892512]
[1770159748301,0.4254214,2234.4,2233.4,2.629]
[1770159748501,0.4254214,2234.4,2233.5,2.629]
[1770159749504,0.43186826,2234.2,2233.5,2.629]
[1770159749700,0.43186826,2234.2,2233.6,51.47145245]
[1770159750903,0.64894602,2234.5,2233.6,51.47145245]
[1770159751104,4.52671366,2234.4,2233.6,51.47145245]
[1770159751306,0.4195235,2234.4,2233.6,51.47145245]
[1770159754206,4.52783371,2234.3,2233.6,51.47145245]
[1770159754403,0.4195235,2234.4,2233.6,51.47145245]
[1770159754605,0.00535252,2234.5,2232.1,0.43747267]
[1770159754606,0.42782658,2233.3,2232.1,0.43747267]
[1770159754804,39.54836638,2233.6,2232.3,0.43747267]
[1770159755004,39.32421638,2233.9,2232.4,0.43747267]
[1770159755208,4.52367308,2233.8,2232.6,0.43747267]
[1770159755401,4.52367308,2233.7,2232.6,0.43747267]
[1770159755607,0.22411,2234.1,2233.0,0.43747267]
[1770159755908,0.22411,2234.1,2232.9,0.00364525]
[1770159755909,0.43019197,2234.2,2233.2,0.43747267]
[1770159756108,4.52037345,2234.1,2233.3,51.42354218]
[1770159756405,0.43019197,2234.2,2233.3,51.42354218]
[1770159756703,4.52173186,2234.1,2233.4,3.14947267]
[1770159756909,0.22408,2234.3,2233.5,0.43747267]
[1770159757104,0.43542346,2234.5,2233.5,51.8646601]
[1770159757312,4.52099985,2234.4,2233.5,51.86101485]
[1770159757507,0.43542346,2234.5,2233.6,2.724]
[1770159757706,4.52103006,2234.4,2233.6,2.724]
[1770159757903,0.65632791,2234.4,2233.7,51.42354218]
[1770159758105,0.43225791,2233.7,2232.8,2.24]
[1770159758310,0.22416,2233.5,2232.9,2.734]
[1770159758507,0.6539361,2233.2,2232.6,0.00449544]
[1770159758703,0.6539361,2233.2,2232.7,19.70751998]
[1770159758704,0.4297461,2233.1,2232.7,19.70751998]
[1770159759406,0.22419,2233.2,2232.8,0.00364525]
[1770159759608,0.22419,2233.2,2232.6,0.00449544]
[1770159759609,38.8963898,2233.9,2232.9,3.17647267]
[1770159759814,38.8963898,2233.9,2232.6,0.00449544]
[1770159759815,4.52142874,2233.8,2233.0,3.17647267]
[1770159760110,0.44987084,2233.8,2233.0,2.739]
[1770159760310,4.97335366,2233.7,2233.1,19.70751998]
[1770159760615,0.45021407,2233.5,2232.9,2.741]
[1770159760912,0.45021407,2233.5,2232.6,0.00449544]
[1770159760913,0.45021407,2233.3,2232.6,0.00449544]
[1770159761107,4.94238941,2233.2,2232.6,0.00449544]
[1770159761306,4.94238941,2233.1,2232.6,0.00449544]
[1770159761504,0.45021407,2233.1,2232.6,0.00449544]
[1770159761908,0.22419,2233.2,2232.6,0.00449544]
[1770159762106,4.49372678,2233.1,2232.6,0.00449544]
[1770159762305,0.22419,2233.2,2232.6,0.00449544]
[1770159762515,4.49608059,2233.1,2232.6,0.00449544]
[1770159762815,2.5983361,2233.3,2232.6,0.00814069]
[1770159763016,4.48761892,2233.2,2232.6,0.00449544]
[1770159763316,4.48761892,2233.1,2232.6,0.00449544]
[1770159763510,2.5983361,2233.3,2232.6,0.00449544]
[1770159763712,4.41727347,2233.2,2232.6,0.00449544]
[1770159763912,4.41727347,2233.1,2232.6,0.00449544]
[1770159764112,2.5983361,2233.3,2232.6,0.00449544]
[1770159764311,4.41383758,2233.2,2232.6,0.00449544]
[1770159764608,4.41383758,2233.1,2232.6,0.00449544]
[1770159764808,2.5983361,2233.3,2232.6,0.00449544]
[1770159765116,2.5983361,2233.3,2232.6,0.00814069]
[1770159765715,3.86627648,2233.3,2232.6,0.00814069]
[1770159767111,2.5983361,2233.2,2232.6,0.00814069]
[1770159767609,3.87190344,2233.2,2232.7,0.00364525]
[1770159768011,3.87190344,2233.2,2232.6,0.00449544]
[1770159768214,3.87390081,2233.3,2232.9,0.00364525]
[1770159768410,3.87390081,2233.3,2232.8,0.00364525]
[1770159768818,3.87390081,2233.3,2232.9,0.00364525]
[1770159769119,2.5983361,2233.4,2232.9,0.00364525]
[1770159769417,2.5983361,2233.5,2233.2,0.00364525]
[1770159769621,2.5983361,2233.5,2232.6,0.44196811]
[1770159769625,2.5983361,2233.5,2232.9,0.00364525]
[1770159769919,38.8963898,2233.6,2232.9,0.00364525]
[1770159769920,2.5983361,2233.6,2232.9,0.00364525]
[1770159770118,2.5983361,2233.5,2233.0,0.00364525]
[1770159770318,2.5983361,2233.5,2232.8,0.00364525]
[1770159770519,2.5983361,2233.5,2232.9,0.00364525]
[1770159770717,2.5983361,2233.6,2232.9,1.59155614]
[1770159770919,2.5983361,2233.9,2233.3,0.00364525]
[1770159771214,2.5983361,2233.9,2233.1,0.00364525]
[1770159771412,2.5983361,2233.8,2233.2,0.00364525]
[1770159771617,4.62445642,2233.8,2233.4,0.00364525]
[1770159771821,2.02612032,2233.8,2233.2,0.00364525]
[1770159772019,2.5983361,2233.9,2233.2,0.00364525]
[1770159772219,2.5983361,2233.9,2233.3,0.00364525]
[1770159772419,2.5983361,2233.9,2233.2,0.00364525]
[1770159772921,2.5983361,2233.9,2233.3,0.00364525]
[1770159773118,2.5983361,2233.9,2233.2,0.00364525]
[1770159773418,4.62445642,2233.9,2233.2,0.00364525]
[1770159773621,4.62445642,2233.9,2233.3,0.00364525]
[1770159773819,4.62445642,2233.9,2233.2,0.00364525]
[1770159774218,4.62445642,2233.9,2233.3,0.00364525]
[1770159774415,4.62445642,2233.9,2233.2,0.00364525]
[1770159774821,4.62445642,2233.9,2233.3,0.00364525]
[1770159775021,2.5983361,2233.9,2233.3,0.00364525]
[1770159775222,2.5983361,2233.9,2233.5,0.00364525]
[1770159775417,2.22990138,2234.4,2233.6,1.91810894]
[1770159775622,0.00535252,2234.5,2233.6,1.91810894]
[1770159776021,2.2352539,2234.5,2233.6,4.54610894]
[1770159776916,2.22990138,2233.9,2232.7,2.45586554]
[1770159777317,2.22990138,2233.9,2232.7,2.57608916]
[1770159777825,2.22990138,2233.9,2232.7,2.45586554]